bitfinex/quotes_BTCUSD_20240927
["timestamp","ask_amount","ask_price","bid_price","bid_amount"]
[1727477289914,0.58815532,66087.0,66086.0,1e-06]
[1727477290560,0.70257789,66087.0,66086.0,1e-06]
[1727477291422,0.258334,66079.0,66078.0,0.001656]
[1727477291628,0.45912057,66079.0,66078.0,0.001656]
[1727477291838,0.45912057,66079.0,66078.0,0.00891716]
[1727477292053,0.45912057,66079.0,66078.0,0.001656]
[1727477292561,0.55752057,66079.0,66078.0,0.001656]
[1727477292811,0.60425156,66079.0,66078.0,0.001656]
[1727477293054,0.60225156,66079.0,66078.0,0.001656]
[1727477293290,0.59225156,66079.0,66078.0,0.001656]
[1727477293534,0.59425156,66079.0,66078.0,0.001656]
[1727477293780,0.59225156,66079.0,66078.0,0.001656]
[1727477294020,0.55752057,66079.0,66078.0,0.001656]
[1727477295438,0.58352057,66079.0,66078.0,0.001656]
[1727477295889,0.57152057,66079.0,66078.0,0.001656]
[1727477296171,0.58552057,66079.0,66078.0,0.001656]
[1727477296992,0.60925206,66079.0,66078.0,0.001656]
[1727477299558,0.58552057,66079.0,66078.0,0.001656]
[1727477300222,0.58352057,66079.0,66078.0,0.001656]
[1727477302178,0.58552057,66079.0,66078.0,0.001656]
[1727477302595,0.609252,66079.0,66078.0,0.001656]
[1727477304088,0.58552057,66079.0,66078.0,0.001656]
[1727477308479,0.60925215,66079.0,66078.0,0.001656]
[1727477309413,0.60725215,66079.0,66078.0,0.001656]
[1727477309635,0.60925215,66079.0,66078.0,0.001656]
[1727477310802,0.60725215,66079.0,66078.0,0.001656]
[1727477311055,0.60925215,66079.0,66078.0,0.001656]
[1727477311661,0.58552057,66079.0,66078.0,0.001656]
[1727477314333,0.58352057,66079.0,66078.0,0.001656]
[1727477314568,0.58552057,66079.0,66078.0,0.001656]
[1727477314800,0.6092521,66079.0,66078.0,0.001656]
[1727477315022,0.6072521,66079.0,66078.0,0.001656]
[1727477315260,0.6092521,66079.0,66078.0,0.001656]
[1727477315499,0.30806553,66079.0,66078.0,0.001656]
[1727477315728,0.30918375,66079.0,66078.0,0.001656]
[1727477316164,0.46258914,66079.0,66078.0,0.001656]
[1727477316379,0.46147092,66079.0,66078.0,0.001656]
[1727477316603,0.46147156,66079.0,66078.0,0.001656]
[1727477316848,0.61785962,66079.0,66078.0,0.001656]
[1727477317278,0.46445359,66079.0,66078.0,0.001656]
[1727477317967,0.61786194,66079.0,66078.0,0.001656]
[1727477318183,0.46445359,66079.0,66078.0,0.001656]
[1727477319299,0.61786353,66079.0,66078.0,0.001656]
[1727477319518,0.46445359,66079.0,66078.0,0.001656]
[1727477319748,0.61786529,66079.0,66078.0,0.001656]
[1727477320206,0.46445359,66079.0,66078.0,0.001656]
[1727477324822,0.57887616,66079.0,66078.0,0.001656]
[1727477325046,0.46445359,66079.0,66078.0,0.001656]
[1727477325259,0.57887616,66079.0,66078.0,0.001656]
[1727477330578,0.4224881,66079.0,66078.0,0.001656]
[1727477331013,0.39875657,66079.0,66078.0,0.001656]
[1727477331456,0.49165657,66079.0,66078.0,0.001656]
[1727477334194,0.51538743,66079.0,66078.0,0.001656]
[1727477335403,0.49165657,66079.0,66078.0,0.001656]
[1727477335631,0.64090763,66079.0,66078.0,0.001656]
[1727477338499,0.66463892,66079.0,66078.0,0.001656]
[1727477339192,0.66663892,66079.0,66078.0,0.001656]
[1727477339437,0.66463892,66079.0,66078.0,0.001656]
[1727477342037,0.64090763,66079.0,66078.0,0.001656]
[1727477345216,0.66463891,66079.0,66078.0,0.001656]
[1727477346543,0.64090763,66079.0,66078.0,0.001656]
[1727477349246,0.64290763,66079.0,66078.0,0.001656]
[1727477349754,0.6666391,66079.0,66078.0,0.001656]
[1727477350775,0.64290763,66079.0,66078.0,0.001656]
[1727477354207,0.666639,66079.0,66078.0,0.001656]
[1727477355266,0.64290763,66079.0,66078.0,0.001656]
[1727477358253,0.66663929,66079.0,66078.0,0.001656]
[1727477359530,0.64290763,66079.0,66078.0,0.001656]
[1727477362394,0.66663922,66079.0,66078.0,0.001656]
[1727477363679,0.64290763,66079.0,66078.0,0.001656]
[1727477369266,0.64090763,66079.0,66078.0,0.001656]
[1727477369829,0.64290763,66079.0,66078.0,0.001656]
[1727477372668,0.86682588,66079.0,66078.0,0.001656]
[1727477372878,0.86684541,66079.0,66078.0,0.001656]
[1727477373293,0.64290763,66079.0,66078.0,0.001656]
[1727477373912,0.64290763,66079.0,66065.0,0.0493767]
[1727477373913,0.0958,66074.0,66069.0,0.2259765]
[1727477374127,0.26577657,66070.0,66069.0,0.2259765]
[1727477374331,0.36577657,66070.0,66069.0,0.2259765]
[1727477374533,0.151366,66065.0,66064.0,0.0826]
[1727477376610,0.153366,66065.0,66064.0,0.0826]
[1727477377439,0.151366,66065.0,66064.0,0.0826]
[1727477377647,0.29711041,66065.0,66064.0,0.0826]
[1727477378108,0.29411041,66065.0,66064.0,0.0826]
[1727477378314,0.43050895,66065.0,66064.0,0.0826]
[1727477378518,0.43350895,66065.0,66064.0,0.0826]
[1727477378924,0.30111041,66065.0,66064.0,0.0826]
[1727477379142,0.29711041,66065.0,66064.0,0.0826]
[1727477379356,0.43350045,66065.0,66064.0,0.0826]
[1727477379557,0.43750045,66065.0,66064.0,0.0826]
[1727477380402,0.46123321,66065.0,66064.0,0.0826]
[1727477381470,0.46123321,66065.0,66064.0,0.084256]
[1727477381897,0.43350045,66065.0,66064.0,0.084256]
[1727477382309,0.43850045,66065.0,66064.0,0.001656]
[1727477382739,0.43550045,66065.0,66064.0,0.001656]
[1727477383632,0.43950045,66065.0,66064.0,0.001656]
[1727477390621,0.30311041,66065.0,66064.0,0.001656]
[1727477390844,0.43950045,66065.0,66064.0,0.001656]
[1727477391030,0.30311041,66065.0,66064.0,0.001656]
[1727477391595,0.50092863,66065.0,66064.0,0.001656]
[1727477391851,0.49981041,66065.0,66064.0,0.001656]
[1727477392257,0.65320852,66065.0,66064.0,0.001656]
[1727477392416,0.64920852,66065.0,66064.0,0.001656]
[1727477392618,0.51454573,66065.0,66064.0,0.001656]
[1727477392899,0.52454573,66065.0,66064.0,0.001656]
[1727477393158,0.6899149,66065.0,66064.0,0.001656]
[1727477393345,0.6679149,66065.0,66064.0,0.001656]
[1727477393553,0.51454573,66065.0,66064.0,0.001656]
[1727477393766,0.69589906,66065.0,66064.0,0.001656]
[1727477393970,0.68189906,66065.0,66064.0,0.001656]
[1727477394184,0.66789906,66065.0,66064.0,0.001656]
[1727477394385,0.52854573,66065.0,66064.0,0.001656]
[1727477394818,0.68188083,66065.0,66064.0,0.001656]
[1727477395499,0.68186664,66065.0,66064.0,0.001656]
[1727477396198,0.54154573,66065.0,66064.0,0.001656]
[1727477396628,0.694867,66065.0,66064.0,0.001656]
[1727477397115,0.39880132,66065.0,66064.0,0.001656]
[1727477414270,0.55209054,66065.0,66064.0,0.001656]
[1727477414740,0.39880132,66065.0,66064.0,0.001656]
[1727477415229,0.55209054,66065.0,66064.0,0.001656]
[1727477415677,0.55214257,66065.0,66064.0,0.001656]
[1727477415899,0.70853063,66065.0,66064.0,0.001656]
[1727477417868,0.55518938,66065.0,66064.0,0.001656]
[1727477418310,0.70853063,66065.0,66064.0,0.001656]
[1727477424571,0.68479531,66065.0,66064.0,0.001656]
[1727477424787,0.6848699,66065.0,66064.0,0.001656]
[1727477427005,0.53145406,66065.0,66064.0,0.001656]
[1727477429169,0.55518956,66065.0,66064.0,0.001656]
[1727477433357,0.53145406,66065.0,66064.0,0.001656]
[1727477436698,0.39880141,66065.0,66064.0,0.001656]
[1727477446598,0.47590141,66065.0,66064.0,0.001656]
[1727477456921,0.47790141,66065.0,66064.0,0.001656]
[1727477457700,0.47590141,66065.0,66064.0,0.001656]
[1727477465580,0.47790141,66065.0,66064.0,0.001656]
[1727477465793,0.63428947,66065.0,66064.0,0.001656]
[1727477469155,0.63129247,66065.0,66064.0,0.001656]
[1727477470447,0.47490441,66065.0,66064.0,0.001656]
[1727477470886,0.47290441,66065.0,66064.0,0.001656]
[1727477471845,0.47490441,66065.0,66064.0,0.001656]
[1727477472044,0.47290441,66065.0,66064.0,0.001656]
[1727477472262,0.47490441,66065.0,66064.0,0.001656]
[1727477472680,0.47290441,66065.0,66064.0,0.001656]
[1727477472862,0.47490441,66065.0,66064.0,0.001656]
[1727477473638,0.47290441,66065.0,66064.0,0.001656]
[1727477473899,0.62929247,66065.0,66064.0,0.001656]
[1727477474131,0.63129247,66065.0,66064.0,0.001656]
[1727477474351,0.62929247,66065.0,66064.0,0.001656]
[1727477475191,0.61829247,66065.0,66064.0,0.001656]
[1727477475618,0.63229247,66065.0,66064.0,0.001656]
[1727477475837,0.61829247,66065.0,66064.0,0.001656]
[1727477476077,0.63229247,66065.0,66064.0,0.001656]
[1727477485677,0.97257047,66065.0,66064.0,0.001656]
[1727477485894,1.23375082,66065.0,66064.0,0.001656]
[1727477487039,1.21001541,66065.0,66064.0,0.001656]
[1727477488407,1.21084341,66065.0,66064.0,0.001656]
[1727477488856,1.19684341,66065.0,66064.0,0.001656]
[1727477489336,1.21084341,66065.0,66064.0,0.001656]
[1727477489571,1.19684341,66065.0,66064.0,0.001656]
[1727477489810,0.007,66061.0,66060.0,0.001656]
[1727477490066,1.53270057,66061.0,66060.0,0.001656]
[1727477490314,1.53270057,66061.0,66060.0,9.3e-07]
[1727477490315,1.84709857,66061.0,66060.0,9.3e-07]
[1727477490549,0.54799757,66061.0,66060.0,0.009162]
[1727477490780,1.00072,66060.0,66059.0,0.001656]
[1727477491012,1.33230806,66060.0,66059.0,0.001656]
[1727477491519,1.33230806,66060.0,66059.0,1e-06]
[1727477492464,1.34630806,66060.0,66059.0,1e-06]
[1727477492942,1.35630806,66060.0,66059.0,1e-06]
[1727477493433,1.58007949,66060.0,66059.0,1e-06]
[1727477493665,1.58008133,66060.0,66059.0,1e-06]
[1727477493915,1.35630806,66060.0,66059.0,1e-06]
[1727477494398,1.37030806,66060.0,66059.0,1e-06]
[1727477494635,1.6170216,66060.0,66059.0,1e-06]
[1727477495592,1.39330806,66060.0,66059.0,1e-06]
[1727477496064,1.41704898,66060.0,66059.0,1e-06]
[1727477497085,0.54800857,66056.0,66055.0,1e-06]
[1727477498399,0.57600857,66056.0,66055.0,1e-06]
[1727477498926,0.56200857,66056.0,66055.0,1e-06]
[1727477499132,0.258407,66047.0,66046.0,0.2769241]
[1727477499404,0.63003259,66047.0,66046.0,0.2769241]
[1727477499651,0.151425,66039.0,66038.0,0.3050275]
[1727477499867,0.26584757,66039.0,66038.0,0.3050275]
[1727477500091,0.26584757,66039.0,66038.0,0.07771]
[1727477501443,0.27384757,66039.0,66038.0,0.07771]
[1727477501629,0.26584757,66039.0,66038.0,0.07771]
[1727477502124,0.27384757,66039.0,66038.0,0.07771]
[1727477502350,0.40490446,66039.0,66038.0,0.07771]
[1727477503087,0.19316837,66039.0,66038.0,0.07771]
[1727477506943,0.30759094,66039.0,66038.0,0.07771]
[1727477507161,0.30759094,66039.0,66038.0,0.00231]
[1727477507557,0.40759094,66039.0,66038.0,0.00231]
[1727477508691,0.38384757,66039.0,66038.0,0.00231]
[1727477508932,0.53662446,66039.0,66038.0,0.00231]
[1727477511890,0.63582446,66039.0,66038.0,0.00231]
[1727477512122,0.62782446,66039.0,66038.0,0.00231]
[1727477512369,0.63282446,66039.0,66038.0,0.003966]
[1727477512615,0.71572446,66039.0,66038.0,0.003966]
[1727477512856,0.70572446,66039.0,66038.0,0.003966]
[1727477513094,0.71972446,66039.0,66038.0,0.003966]
[1727477513335,0.73072446,66039.0,66038.0,0.003966]
[1727477513586,0.71672446,66039.0,66038.0,0.003966]
[1727477513824,0.71972446,66039.0,66038.0,0.003966]
[1727477514066,0.73372446,66039.0,66038.0,0.003966]
[1727477515912,1.34996246,66039.0,66038.0,0.003966]
[1727477516132,1.5030196,66039.0,66038.0,0.003966]
[1727477516357,1.4890196,66039.0,66038.0,0.003966]
[1727477516573,1.33596246,66039.0,66038.0,0.003966]
[1727477516794,1.34996246,66039.0,66038.0,0.003966]
[1727477517031,0.158434,66035.0,66028.0,0.2273175]
[1727477517247,0.56407479,66035.0,66028.0,0.2273175]
[1727477517463,0.56295657,66035.0,66028.0,0.2273175]
[1727477518400,0.59995657,66035.0,66025.0,0.0493535]
[1727477518620,0.62370474,66035.0,66025.0,0.0493535]
[1727477518834,0.7800928,66035.0,66024.0,0.001656]
[1727477519427,0.7660928,66035.0,66024.0,0.001656]
[1727477519962,0.7800928,66035.0,66024.0,0.001656]
[1727477520511,0.7940928,66035.0,66024.0,0.001656]
[1727477520953,0.7800928,66035.0,66024.0,0.001656]
[1727477521967,0.91601601,66035.0,66024.0,0.001656]
[1727477522227,0.7940928,66035.0,66024.0,0.001656]
[1727477522418,0.92801601,66035.0,66024.0,0.001656]
[1727477522672,0.92801601,66035.0,66028.0,0.0967]
[1727477522673,0.43910538,66035.0,66028.0,0.0967]
[1727477522883,0.179434,66035.0,66033.0,0.0813]
[1727477523286,0.22473494,66035.0,66033.0,0.0813]
[1727477523645,0.21073494,66035.0,66033.0,0.0813]
[1727477524106,0.31073853,66035.0,66033.0,0.0813]
[1727477525435,0.265434,66035.0,66033.0,0.0813]
[1727477525557,0.278434,66035.0,66033.0,0.0813]
[1727477526251,0.30217856,66035.0,66033.0,0.0813]
[1727477526926,0.34749689,66035.0,66033.0,0.0813]
[1727477527153,0.32375233,66035.0,66033.0,0.0813]
[1727477527413,0.278434,66035.0,66033.0,0.0813]
[1727477528323,0.32375233,66035.0,66033.0,0.0813]
[1727477529208,0.278434,66035.0,66033.0,0.0813]
[1727477529637,0.32375233,66035.0,66033.0,0.0813]
[1727477529887,0.278434,66035.0,66033.0,0.0813]
[1727477530459,0.32375233,66035.0,66033.0,0.0813]
[1727477531518,0.32380079,66035.0,66033.0,0.0813]
[1727477532440,0.278434,66035.0,66033.0,0.0813]
[1727477533094,0.02399989,66035.0,66033.0,0.0813]
[1727477533303,0.06937581,66035.0,66034.0,0.244791]
[1727477533506,0.02399989,66035.0,66034.0,0.24781927]
[1727477533814,0.02399989,66035.0,66034.0,0.32621927]
[1727477533931,0.01099989,66035.0,66034.0,0.32621927]
[1727477534159,0.14620392,66038.0,66035.0,0.151434]
[1727477534389,0.14620392,66038.0,66034.0,0.33024957]
[1727477534629,0.01,66035.0,66034.0,0.171754]
[1727477534863,0.19680592,66037.0,66034.0,0.171754]
[1727477535106,0.007,66035.0,66034.0,0.171754]
[1727477535335,0.008,66035.0,66034.0,0.32621936]
[1727477535473,0.008,66035.0,66034.0,0.323191]
[1727477535716,0.15620392,66038.0,66034.0,0.323191]
[1727477535894,0.158431,66037.0,66034.0,0.171754]
[1727477536109,0.007,66037.0,66034.0,0.323191]
[1727477536328,0.30763192,66038.0,66035.0,0.00708231]
[1727477536541,0.15143,66037.0,66035.0,0.00708231]
[1727477536773,0.15143,66037.0,66035.0,0.00708185]
[1727477536994,0.15143,66037.0,66034.0,0.171754]
[1727477537472,0.151433,66036.0,66034.0,0.171754]
[1727477537724,0.151434,66036.0,66034.0,0.171754]
[1727477537967,0.157434,66035.0,66034.0,0.171754]
[1727477538639,0.34823592,66037.0,66034.0,0.171754]
[1727477539088,0.151434,66035.0,66034.0,0.171754]
[1727477539322,0.156434,66035.0,66034.0,0.171754]
[1727477539777,0.151434,66035.0,66034.0,0.171754]
[1727477540005,0.151434,66035.0,66034.0,0.080054]
[1727477540691,0.157434,66035.0,66034.0,0.080054]
[1727477541728,0.162434,66035.0,66034.0,0.080054]
[1727477543230,0.25066597,66035.0,66034.0,0.080054]
[1727477543546,0.25066597,66035.0,66034.0,0.001654]
[1727477545247,0.162434,66035.0,66034.0,0.001654]
[1727477553230,0.162434,66035.0,66034.0,0.093154]
[1727477555570,0.011,66035.0,66034.0,0.244591]
[1727477555806,0.011,66035.0,66034.0,0.3237193]
[1727477556056,0.011,66035.0,66034.0,0.320691]
[1727477557252,0.011,66035.0,66034.0,0.169254]
[1727477557485,0.011,66035.0,66034.0,0.17228237]
[1727477557717,0.011,66035.0,66034.0,0.169254]
[1727477557960,0.162434,66035.0,66034.0,0.169254]
[1727477559843,0.011,66035.0,66034.0,0.077754]
[1727477561009,0.162434,66035.0,66034.0,0.077754]
[1727477563363,0.011,66035.0,66034.0,0.077754]
[1727477563587,0.163262,66035.0,66034.0,0.001654]
[1727477567343,0.20863792,66035.0,66034.0,0.001654]
[1727477567778,0.20870163,66035.0,66034.0,0.001654]
[1727477568225,0.23142145,66035.0,66034.0,0.001654]
[1727477571715,0.163262,66035.0,66034.0,0.001654]
[1727477572340,0.25414127,66035.0,66034.0,0.001654]
[1727477572582,0.2542227,66035.0,66034.0,0.001654]
[1727477572790,0.3534227,66035.0,66034.0,0.001654]
[1727477574102,0.262462,66035.0,66034.0,0.001654]
[1727477574330,0.30424768,66035.0,66034.0,0.001654]
[1727477577626,0.262462,66035.0,66034.0,0.001654]
[1727477578400,0.28620695,66035.0,66034.0,0.001654]
[1727477578588,0.262462,66035.0,66034.0,0.001654]
[1727477613280,0.39891509,66035.0,66034.0,0.001654]
[1727477613497,0.39892627,66035.0,66034.0,0.001654]
[1727477613719,0.262462,66035.0,66034.0,0.001654]
[1727477613920,0.36972574,66035.0,66034.0,0.001654]
[1727477614642,0.50619718,66035.0,66034.0,0.001654]
[1727477615245,0.36972574,66035.0,66034.0,0.001654]
[1727477619615,0.50621272,66035.0,66034.0,0.001654]
[1727477620448,0.39894898,66035.0,66034.0,0.001654]
[1727477623260,0.262462,66035.0,66034.0,0.001654]
[1727477633643,0.163262,66035.0,66034.0,0.001654]
[1727477644957,0.261562,66035.0,66034.0,0.001654]
[1727477646335,0.337362,66035.0,66034.0,0.001654]
[1727477652471,0.47383665,66035.0,66034.0,0.001654]
[1727477653981,0.58195752,66035.0,66034.0,0.001654]
[1727477654328,0.58197377,66035.0,66034.0,0.001654]
[1727477659284,0.44548287,66035.0,66034.0,0.001654]
[1727477660343,0.58196954,66035.0,66034.0,0.001654]
[1727477660750,0.58196651,66035.0,66034.0,0.001654]
[1727477660960,0.44548287,66035.0,66034.0,0.001654]
[1727477661177,0.58196694,66035.0,66034.0,0.001654]
[1727477665006,0.58195716,66035.0,66034.0,0.001654]
[1727477665219,0.44548287,66035.0,66034.0,0.001654]
[1727477665417,0.58195847,66035.0,66034.0,0.001654]
[1727477667280,0.44548287,66035.0,66034.0,0.001654]
[1727477667887,0.79638104,66035.0,66034.0,0.001654]
[1727477668068,0.65990544,66035.0,66034.0,0.001654]
[1727477672717,0.68365181,66035.0,66034.0,0.001654]
[1727477673282,0.67865181,66035.0,66034.0,0.001654]
[1727477673482,0.68465181,66035.0,66034.0,0.001654]
[1727477673915,0.66090544,66035.0,66034.0,0.001654]
[1727477674115,0.65980544,66035.0,66034.0,0.001654]
[1727477674290,0.65490544,66035.0,66034.0,0.001654]
[1727477674494,0.66190544,66035.0,66034.0,0.001654]
[1727477677093,0.55378457,66035.0,66034.0,0.001654]
[1727477677301,0.57753093,66035.0,66034.0,0.001654]
[1727477692499,0.46310836,66035.0,66034.0,0.001654]
[1727477713117,0.38730836,66035.0,66034.0,0.001654]
[1727477713322,0.28900836,66035.0,66034.0,0.001654]
[1727477714200,0.265262,66035.0,66034.0,0.001654]
[1727477722777,0.40177805,66035.0,66034.0,0.001654]
[1727477723023,0.50127805,66035.0,66034.0,0.001654]
[1727477723275,0.5012801,66035.0,66034.0,0.001654]
[1727477723499,0.364762,66035.0,66034.0,0.001654]
[1727477731811,0.50128197,66035.0,66034.0,0.001654]
[1727477732019,0.364762,66035.0,66034.0,0.001654]
[1727477733262,0.50128281,66035.0,66034.0,0.001654]
[1727477733460,0.364762,66035.0,66034.0,0.001654]
[1727477774934,0.50197869,66035.0,66034.0,0.001654]
[1727477781882,0.151455,66026.0,66025.0,0.2256255]
[1727477782117,0.26525459,66026.0,66025.0,0.2256255]
[1727477782351,0.151457,66025.0,66024.0,0.001656]
[1727477783672,0.24249593,66025.0,66024.0,0.001656]
[1727477784307,0.151457,66025.0,66024.0,0.001656]
[1727477784952,0.24349582,66025.0,66024.0,0.001656]
[1727477785158,0.152457,66025.0,66024.0,0.001656]
[1727477785394,0.24349586,66025.0,66024.0,0.001656]
[1727477786032,0.001,66025.0,66024.0,0.329716]
[1727477786729,0.06927796,66025.0,66024.0,0.329716]
[1727477788441,0.06927796,66025.0,66024.0,0.178256]
[1727477789964,0.001,66025.0,66024.0,0.178256]
[1727477790176,0.06927618,66025.0,66024.0,0.178256]
[1727477790633,0.06927618,66025.0,66024.0,0.329716]
[1727477792541,0.06927618,66025.0,66024.0,0.178256]
[1727477797000,0.06927476,66025.0,66024.0,0.178256]
[1727477798264,0.06927461,66025.0,66024.0,0.178256]
[1727477799767,0.06927497,66025.0,66024.0,0.178256]
[1727477801068,0.06927497,66025.0,66024.0,0.079656]
[1727477801858,0.06927497,66025.0,66024.0,0.001656]
[1727477802384,0.001,66025.0,66024.0,0.001656]
[1727477803470,0.06927472,66025.0,66024.0,0.001656]
[1727477803899,0.001,66025.0,66024.0,0.001656]
[1727477804540,0.152457,66025.0,66024.0,0.001656]
[1727477807855,0.24349045,66025.0,66024.0,0.001656]
[1727477808295,0.152457,66025.0,66024.0,0.001656]
[1727477808547,0.24349045,66025.0,66024.0,0.001656]
[1727477809015,0.33669045,66025.0,66024.0,0.001656]
[1727477809476,0.35633778,66025.0,66024.0,0.001656]
[1727477809747,0.35633977,66025.0,66024.0,0.001656]
[1727477810861,0.33669244,66025.0,66024.0,0.001656]
[1727477811304,0.18689144,66025.0,66024.0,0.001656]
[1727477811527,0.33834844,66025.0,66024.0,0.001656]
[1727477811744,0.18689144,66025.0,66024.0,0.001656]
[1727477811957,0.24514844,66025.0,66024.0,0.001656]
[1727477812629,0.42058867,66025.0,66024.0,0.001656]
[1727477813755,0.50378867,66025.0,66024.0,0.001656]
[1727477814695,0.50378762,66025.0,66024.0,0.001656]
[1727477814912,0.52654622,66025.0,66024.0,0.001656]
[1727477816074,0.50378448,66025.0,66024.0,0.001656]
[1727477819429,0.50378305,66025.0,66024.0,0.001656]
[1727477822784,0.50378204,66025.0,66024.0,0.001656]
[1727477824717,0.50378174,66025.0,66024.0,0.001656]
[1727477827716,0.50378175,66025.0,66024.0,0.001656]
[1727477831714,0.42154152,66025.0,66024.0,0.001656]
[1727477833432,0.330513,66025.0,66024.0,0.001656]
[1727477838321,0.329513,66025.0,66024.0,0.001656]
[1727477838546,0.330513,66025.0,66024.0,0.001656]
[1727477841351,0.329513,66025.0,66024.0,0.001656]
[1727477842472,0.43669968,66025.0,66024.0,0.001656]
[1727477846057,0.329513,66025.0,66024.0,0.001656]
[1727477867683,0.329513,66025.0,66024.0,0.001656]
[1727477869330,0.44326856,66025.0,66024.0,0.001656]
[1727477869683,0.329513,66025.0,66024.0,0.001656]
[1727477878073,0.246313,66025.0,66024.0,0.001656]
[1727477891459,0.153113,66025.0,66024.0,0.001656]
[1727477891906,0.26691648,66025.0,66024.0,0.001656]
[1727477892135,0.153113,66025.0,66024.0,0.001656]
[1727477892713,0.26691549,66025.0,66024.0,0.001656]
[1727477893959,0.153113,66025.0,66024.0,0.001656]
[1727477898743,0.26691245,66025.0,66024.0,0.001656]
[1727477900108,0.26691236,66025.0,66024.0,0.001656]
[1727477901287,0.153113,66025.0,66024.0,0.001656]
[1727477901820,0.26691261,66025.0,66024.0,0.001656]
[1727477902055,0.153113,66025.0,66024.0,0.001656]
[1727477903177,0.24415006,66025.0,66024.0,0.001656]
[1727477904968,0.26691221,66025.0,66024.0,0.001656]
[1727477906342,0.153113,66025.0,66024.0,0.001656]
[1727477906565,0.24414428,66025.0,66024.0,0.001656]
[1727477907262,0.153113,66025.0,66024.0,0.001656]
[1727477907476,0.24414428,66025.0,66024.0,0.001656]
[1727477907920,0.153113,66025.0,66024.0,0.001656]
[1727477908375,0.24414428,66025.0,66024.0,0.001656]
[1727477908610,0.153113,66025.0,66024.0,0.001656]
[1727477909565,0.24414428,66025.0,66024.0,0.001656]
[1727477915966,0.153113,66025.0,66024.0,0.001656]
[1727477916188,0.24414428,66025.0,66024.0,0.001656]
[1727477916407,0.153113,66025.0,66024.0,0.001656]
[1727477916638,0.24414428,66025.0,66024.0,0.001656]
[1727477917151,0.153113,66025.0,66024.0,0.001656]
[1727477917816,0.24413053,66025.0,66024.0,0.001656]
[1727477920046,0.24413245,66025.0,66024.0,0.001656]
[1727477924826,0.24413653,66025.0,66024.0,0.001656]
[1727477929676,0.24413846,66025.0,66024.0,0.001656]
[1727477933317,0.153113,66025.0,66024.0,0.001656]
[1727477935613,0.24414458,66025.0,66024.0,0.001656]
[1727477937472,0.153113,66025.0,66024.0,0.001656]
[1727477937936,0.24414661,66025.0,66024.0,0.001656]
[1727477938399,0.153113,66025.0,66024.0,0.001656]
[1727477939970,0.250713,66025.0,66024.0,0.001656]
[1727477942716,0.41995083,66025.0,66024.0,0.001656]
[1727477942992,0.328913,66025.0,66024.0,0.001656]
[1727477944103,0.41995224,66025.0,66024.0,0.001656]
[1727477944540,0.328913,66025.0,66024.0,0.001656]
[1727477951479,0.44270138,66025.0,66024.0,0.001656]
[1727477951701,0.44262656,66025.0,66024.0,0.001656]
[1727477951940,0.44262585,66025.0,66024.0,0.001656]
[1727477952852,0.44262684,66025.0,66024.0,0.001656]
[1727477955223,0.56111629,66025.0,66024.0,0.001656]
[1727477955921,0.44262684,66025.0,66024.0,0.001656]
[1727477962607,0.44262103,66025.0,66024.0,0.001656]
[1727477973159,0.328913,66025.0,66024.0,0.001656]
[1727477988538,0.44263611,66025.0,66024.0,0.001656]
[1727477989178,0.328913,66025.0,66024.0,0.001656]
[1727477991834,0.39130031,66025.0,66024.0,0.001656]
[1727477994945,0.50572288,66025.0,66024.0,0.001656]
[1727477996256,0.50672288,66025.0,66024.0,0.001656]
[1727477996474,0.50972288,66025.0,66024.0,0.001656]
[1727478001456,0.44733557,66025.0,66024.0,0.001656]
[1727478001684,0.157113,66025.0,66024.0,0.001656]
[1727478015272,0.18086054,66025.0,66024.0,0.001656]
[1727478016918,0.157113,66025.0,66024.0,0.001656]
[1727478021940,0.328013,66025.0,66024.0,0.001656]
[1727478022775,0.38457422,66025.0,66024.0,0.001656]
[1727478024485,0.328013,66025.0,66024.0,0.001656]
[1727478038815,0.250413,66025.0,66024.0,0.001656]
[1727478039036,0.25153122,66025.0,66024.0,0.001656]
[1727478040370,0.157113,66025.0,66024.0,0.001656]
[1727478042282,0.27086703,66025.0,66024.0,0.001656]
[1727478042514,0.27086744,66025.0,66024.0,0.001656]
[1727478042800,0.005656,66025.0,66024.0,0.325516]
[1727478043013,0.005656,66025.0,66024.0,0.38498383]
[1727478043229,0.005656,66025.0,66024.0,0.45326532]
[1727478043464,0.005656,66025.0,66024.0,0.348516]
[1727478043667,0.005656,66025.0,66024.0,0.36911055]
[1727478044093,0.002656,66025.0,66024.0,0.36911055]
[1727478044524,0.005656,66025.0,66024.0,0.37111055]
[1727478044735,0.002656,66025.0,66024.0,0.36911055]
[1727478045343,0.003656,66025.0,66024.0,0.38476413]
[1727478045801,0.002656,66025.0,66024.0,0.38676413]
[1727478046235,0.003656,66025.0,66024.0,0.38676413]
[1727478047090,0.003656,66025.0,66024.0,0.38476766]
[1727478047310,0.003656,66025.0,66024.0,0.36911055]
[1727478047761,0.003656,66025.0,66024.0,0.34611055]
[1727478050443,0.003656,66025.0,66024.0,0.325516]
[1727478050646,0.003656,66025.0,66024.0,0.34617657]
[1727478052455,0.003656,66025.0,66024.0,0.25087657]
[1727478055958,0.003656,66025.0,66024.0,0.17377657]
[1727478057636,0.003656,66025.0,66024.0,0.17375423]
[1727478063521,0.003656,66025.0,66024.0,0.153116]
[1727478063715,0.003656,66025.0,66024.0,0.17378644]
[1727478067364,0.003656,66025.0,66024.0,0.1738721]
[1727478067977,0.003656,66025.0,66024.0,0.17387455]
[1727478070506,0.003656,66025.0,66024.0,0.18958716]
[1727478070984,0.003656,66025.0,66024.0,0.18957498]
[1727478071350,0.003656,66025.0,66024.0,0.18956972]
[1727478074431,0.003656,66025.0,66024.0,0.153116]
[1727478074871,0.003656,66025.0,66024.0,0.17389926]
[1727478075293,0.003656,66025.0,66024.0,0.153116]
[1727478076317,0.003656,66025.0,66024.0,0.17391719]
[1727478082902,0.003656,66025.0,66024.0,0.153116]
[1727478083544,0.003656,66025.0,66024.0,0.17389951]
[1727478087643,0.003656,66025.0,66024.0,0.17692826]
[1727478088290,0.003656,66025.0,66024.0,0.17892826]
[1727478089568,0.003656,66025.0,66024.0,0.17692826]
[1727478089793,0.003656,66025.0,66024.0,0.17892826]